bitfinex-derivatives/quotes_SOLF0:USTF0_20250419
["timestamp","ask_amount","ask_price","bid_price","bid_amount"]
[1745055394835,36.29796094,139.56,139.53,7.1674]
[1745055397541,27.3936,139.56,139.54,7.1667]
[1745055397743,27.3936,139.56,139.48,25.46]
[1745055398243,36.29796094,139.56,139.52,7.1676]
[1745055398746,8.90436094,139.54,139.51,7.1683]
[1745055399745,8.90436094,139.54,139.52,7.1679]
[1745055399946,36.29796094,139.56,139.48,25.46]
[1745055400246,36.29796094,139.56,139.52,7.1676]
[1745055400446,36.29796094,139.56,139.48,25.46]
[1745055403041,36.29796094,139.56,139.53,7.1671]
[1745055403243,36.29796094,139.56,139.48,25.46]
[1745055404448,43.46416094,139.56,139.48,25.46]
[1745055404647,36.29796094,139.56,139.48,25.46]
[1745055404948,43.46386094,139.56,139.52,7.1676]
[1745055405149,5.69917599,139.53,139.52,7.1676]
[1745055413156,5.69917599,139.55,139.54,7.1667]
[1745055414056,5.69917599,139.55,139.53,7.1671]
[1745055414556,5.69917599,139.55,139.54,7.1669]
[1745055414957,33.09277599,139.56,139.5,5.69917599]
[1745055415860,33.09277599,139.56,139.55,7.1664]
[1745055416664,25.46,139.56,139.55,7.1664]
[1745055416863,31.15917599,139.56,139.55,7.1664]
[1745055419062,5.69917599,139.56,139.55,7.1664]
[1745055421061,5.69917599,139.58,139.57,7.1651]
[1745055423167,5.69917599,139.58,139.56,7.1657]
[1745055423566,5.69917599,139.58,139.51,25.44]
[1745055423869,5.69917599,139.55,139.49,5.69917599]
[1745055424167,5.69917599,139.53,139.48,31.13917599]
[1745055424867,5.69917599,139.53,139.52,7.168]
[1745055425669,25.44,139.56,139.48,31.13917599]
[1745055425864,31.13917599,139.56,139.5,5.69917599]
[1745055426268,31.13917599,139.56,139.55,7.1664]
[1745055426468,5.69917599,139.56,139.55,7.1664]
[1745055426663,5.69917599,139.56,139.52,5.69917599]
[1745055426862,5.69917599,139.57,139.52,5.69917599]
[1745055428072,5.69917599,139.57,139.56,7.1659]
[1745055428367,5.69917599,139.57,139.51,25.44]
[1745055428570,5.69917599,139.55,139.54,7.1669]
[1745055430170,25.44,139.59,139.52,5.69917599]
[1745055430371,5.69917599,139.58,139.52,5.69917599]
[1745055430974,5.69917599,139.58,139.56,7.1657]
[1745055434572,5.69917599,139.58,139.57,7.1654]
[1745055435568,5.69917599,139.58,139.56,7.1656]
[1745055438473,5.69917599,139.57,139.56,7.1656]
[1745055442781,5.69917599,139.59,139.58,7.1648]
[1745055443680,5.69917599,139.59,139.57,7.1651]
[1745055446082,38.30367599,139.59,139.51,25.44]
[1745055446283,5.69917599,139.55,139.51,25.44]
[1745055446483,5.69917599,139.55,139.54,7.1669]
[1745055446886,5.69917599,139.55,139.53,7.167]
[1745055447788,5.69917599,139.55,139.54,7.1669]
[1745055450295,5.69917599,139.55,139.53,7.1672]
[1745055450592,5.69917599,139.55,139.49,31.13917599]
[1745055451293,5.69917599,139.55,139.54,7.1669]
[1745055453589,5.69917599,139.55,139.53,7.1672]
[1745055454792,5.69917599,139.55,139.54,7.1669]
[1745055459891,5.69917599,139.55,139.51,5.69917599]
[1745055461091,5.69917599,139.55,139.54,7.1669]
[1745055462793,5.69917599,139.55,139.53,7.1672]
[1745055463293,12.86587599,139.55,139.51,7.1682]
[1745055463596,5.69917599,139.52,139.46,25.44]
[1745055463790,5.69917599,139.5,139.46,25.44]
[1745055464392,5.69917599,139.5,139.48,7.1695]
[1745055464593,7.71377599,139.52,139.48,7.1695]
[1745055465095,2.0146,139.52,139.49,7.1694]
[1745055465286,5.69917599,139.5,139.49,7.1694]
[1745055465895,11.20707807,139.5,139.49,7.1694]
[1745055466398,11.20707807,139.5,139.43,25.44]
[1745055466599,5.50790208,139.49,139.44,5.69917599]
[1745055466791,5.50790208,139.48,139.44,5.69917599]
[1745055466997,5.50790208,139.47,139.44,5.69917599]
[1745055467296,5.5079792,139.46,139.44,5.69917599]
[1745055467497,5.5079807,139.45,139.44,5.69917599]
[1745055467998,5.5079807,139.45,139.44,12.87127599]
[1745055468701,31.13917599,139.5,139.48,7.1699]
[1745055473806,31.13917599,139.5,139.46,5.69917599]
[1745055478010,38.30827599,139.5,139.46,5.69917599]
[1745055478412,9.72677599,139.52,139.46,5.69917599]
[1745055478615,25.46,139.53,139.48,5.69917599]
[1745055478908,31.15917599,139.56,139.5,5.69917599]
[1745055479914,7.1668,139.55,139.5,5.69917599]
[1745055480314,31.15917599,139.56,139.5,5.69917599]
[1745055480613,25.46,139.56,139.5,5.69917599]
[1745055480813,12.53646396,139.55,139.5,5.69917599]
[1745055481014,5.36976396,139.54,139.5,5.69917599]
[1745055481214,5.36976396,139.53,139.5,5.69917599]
[1745055481416,5.36976396,139.52,139.5,5.69917599]
[1745055481618,5.3687428,139.51,139.5,5.69917599]
[1745055483523,5.36743463,139.51,139.5,5.69917599]
[1745055484319,12.53593463,139.51,139.5,5.69917599]
[1745055484623,5.36743463,139.51,139.49,25.46]
[1745055484917,7.1695,139.49,139.48,5.69917599]
[1745055485119,12.53693463,139.49,139.48,5.69917599]
[1745055485318,12.53820557,139.49,139.48,5.69917599]
[1745055487022,12.53913591,139.49,139.48,5.69917599]
[1745055489425,5.36963591,139.49,139.48,5.69917599]
[1745055489824,31.13917599,139.56,139.48,5.69917599]
[1745055490024,7.1677,139.53,139.52,5.69917599]
[1745055494530,5.69917599,139.55,139.49,31.13917599]
[1745055495328,7.169,139.5,139.49,31.13917599]
[1745055499032,25.44,139.56,139.49,31.13917599]
[1745055499233,25.44,139.56,139.52,5.69917599]
[1745055499433,21.94257599,139.57,139.52,5.69917599]
[1745055499833,7.1674,139.53,139.52,5.69917599]
[1745055501634,7.1685,139.51,139.5,5.69917599]
[1745055501829,12.40211346,139.51,139.5,5.69917599]
[1745055506339,12.40334304,139.51,139.5,5.69917599]
[1745055510240,7.169,139.5,139.49,25.44]
[1745055510441,12.40384304,139.5,139.49,18.1042]
[1745055510641,12.40384304,139.5,139.49,3.4326]
[1745055511043,5.23484304,139.5,139.47,5.69917599]
[1745055511247,5.23484304,139.49,139.47,5.69917599]
[1745055511442,5.23484304,139.48,139.46,25.44]
[1745055511644,1.9745,139.52,139.47,5.69917599]
[1745055511840,5.23660043,139.51,139.47,5.69917599]
[1745055512043,5.23660043,139.5,139.47,5.69917599]
[1745055512339,5.23660043,139.49,139.47,5.69917599]
[1745055512544,5.23660043,139.48,139.46,31.13917599]
[1745055512744,5.23660043,139.47,139.46,31.13917599]
[1745055515545,5.23660043,139.47,139.46,5.69917599]
[1745055517547,5.23660043,139.47,139.45,25.44]
[1745055517745,5.69917599,139.5,139.46,5.69917599]
[1745055517947,5.23930285,139.49,139.46,5.69917599]
[1745055518245,5.23930285,139.48,139.45,25.44]
[1745055518446,5.23930285,139.47,139.45,25.44]
[1745055518645,5.23930285,139.46,139.45,25.44]
[1745055519141,5.23930285,139.46,139.44,5.69917599]
[1745055519453,5.23930285,139.45,139.42,31.13917599]
[1745055519747,5.69917599,139.48,139.42,31.13917599]
[1745055519748,5.23930285,139.44,139.42,31.13917599]
[1745055519948,3.8205,139.47,139.42,31.13917599]
[1745055519949,5.23930285,139.43,139.42,25.44]
[1745055520146,5.23930285,139.43,139.41,5.69917599]
[1745055520350,5.23930285,139.42,139.41,5.69917599]
[1745055521445,5.23930285,139.42,139.39,5.69917599]
[1745055521647,5.23930285,139.41,139.39,5.69917599]
[1745055521849,5.23930285,139.4,139.38,31.13917599]
[1745055522048,5.23930285,139.39,139.38,31.13917599]
[1745055522251,5.23930285,139.39,139.38,25.44]
[1745055524253,1.944,139.46,139.38,25.44]
[1745055524452,5.22299325,139.45,139.41,5.69917599]
[1745055524753,5.22299325,139.44,139.41,5.69917599]
[1745055524953,5.22298342,139.43,139.41,5.69917599]
[1745055525153,1.944,139.46,139.41,5.69917599]
[1745055525154,5.22298342,139.42,139.41,5.69917599]
[1745055527150,1.944,139.46,139.41,5.69917599]
[1745055527352,5.21690618,139.45,139.41,5.69917599]
[1745055527650,5.21690618,139.44,139.41,5.69917599]
[1745055527850,5.21690618,139.43,139.41,5.69917599]
[1745055528049,1.944,139.46,139.41,5.69917599]
[1745055528250,5.21690619,139.45,139.41,5.69917599]
[1745055528450,5.21690619,139.44,139.41,5.69917599]
[1745055528649,5.21690619,139.43,139.41,5.69917599]
[1745055528847,1.944,139.46,139.41,5.69917599]
[1745055529057,5.21580922,139.45,139.41,5.69917599]
[1745055529256,5.21580922,139.44,139.41,5.69917599]
[1745055529457,5.21580922,139.43,139.41,5.69917599]
[1745055529658,1.944,139.46,139.41,5.69917599]
[1745055529858,5.21485801,139.45,139.41,5.69917599]
[1745055530057,5.21485801,139.44,139.41,5.69917599]
[1745055530357,5.21485801,139.43,139.41,5.69917599]
[1745055530657,1.944,139.46,139.41,5.69917599]
[1745055530857,5.21372579,139.45,139.41,5.69917599]
[1745055531058,5.21372579,139.44,139.41,5.69917599]
[1745055531357,5.21372579,139.43,139.41,5.69917599]
[1745055531560,1.944,139.46,139.41,5.69917599]
[1745055531758,5.21268271,139.45,139.41,5.69917599]
[1745055531959,5.21268271,139.44,139.41,5.69917599]
[1745055532157,5.21268271,139.43,139.41,5.69917599]
[1745055532358,1.944,139.46,139.41,5.69917599]
[1745055532558,5.21164204,139.45,139.41,5.69917599]
[1745055532757,5.21164204,139.44,139.41,5.69917599]
[1745055532957,5.21164204,139.43,139.41,5.69917599]
[1745055533159,1.944,139.46,139.41,5.69917599]
[1745055533357,5.21121314,139.45,139.41,5.69917599]
[1745055533553,5.21121314,139.44,139.41,5.69917599]
[1745055533858,5.21121314,139.43,139.41,5.69917599]
[1745055534059,5.21102576,139.42,139.39,5.69917599]
[1745055534259,1.9816,139.42,139.39,5.69917599]
[1745055535562,1.9816,139.42,139.41,5.69917599]
[1745055535756,5.69917599,139.45,139.41,5.69917599]
[1745055535959,5.20887911,139.44,139.41,5.69917599]
[1745055536157,5.20887911,139.43,139.41,5.69917599]
[1745055536360,3.8402,139.46,139.41,5.69917599]
[1745055536559,5.20876608,139.45,139.41,5.69917599]
[1745055536863,5.20876608,139.44,139.41,5.69917599]
[1745055537058,3.8402,139.46,139.41,5.69917599]
[1745055537257,5.20853723,139.45,139.41,5.69917599]
[1745055537458,5.20853723,139.44,139.41,5.69917599]
[1745055537655,1.8962,139.46,139.43,5.69917599]
[1745055537861,25.46,139.5,139.45,5.69917599]
[1745055538062,5.20809213,139.49,139.45,5.69917599]
[1745055538261,5.20809213,139.48,139.45,5.69917599]
[1745055538462,5.20809213,139.47,139.45,5.69917599]
[1745055538658,5.7429,139.52,139.46,5.69917599]
[1745055538863,5.20886946,139.51,139.49,5.69917599]
[1745055539157,5.20886946,139.5,139.49,5.69917599]
[1745055539362,5.20848092,139.5,139.49,5.69917599]
[1745055540466,5.69917599,139.56,139.49,5.69917599]
[1745055540664,7.11269022,139.55,139.51,5.69917599]
[1745055540864,5.20789022,139.54,139.51,5.69917599]
[1745055541163,5.20789022,139.53,139.51,5.69917599]
[1745055541362,5.20789022,139.52,139.51,5.69917599]
[1745055541566,5.69917599,139.57,139.51,5.69917599]
[1745055541760,5.20787447,139.56,139.51,5.69917599]
[1745055541956,5.20787447,139.55,139.51,5.69917599]
[1745055542162,5.20787447,139.54,139.51,5.69917599]
[1745055542360,5.20787447,139.53,139.51,5.69917599]
[1745055542566,5.20787447,139.52,139.51,5.69917599]
[1745055543569,25.46,139.56,139.51,5.69917599]
[1745055543863,5.2084709,139.55,139.52,25.46]
[1745055544068,5.2084709,139.54,139.52,25.46]
[1745055544272,29.2665,139.59,139.54,5.69917599]
[1745055544471,5.20821778,139.58,139.54,5.69917599]
[1745055544671,5.20821778,139.57,139.54,5.69917599]
[1745055544871,5.20821778,139.56,139.54,5.69917599]
[1745055545069,5.20736979,139.55,139.54,5.69917599]
[1745055545569,1e-08,139.55,139.54,5.69917599]
[1745055545769,109.18448602,139.62,139.54,5.69917599]
[1745055545970,5.69917599,139.6,139.54,5.69917599]
[1745055546975,5.69917599,139.58,139.52,31.15917599]
[1745055548978,5.69917599,139.56,139.5,5.69917599]
[1745055549177,1.8396,139.55,139.5,31.25917599]
[1745055549777,1.8396,139.55,139.5,25.56]
[1745055550176,5.69917599,139.54,139.5,25.56]
[1745055550480,5.69917599,139.52,139.47,31.25917599]
[1745055553282,36.30571134,139.55,139.47,25.56]
[1745055554876,27.3996,139.55,139.47,34.46611134]
[1745055555281,1.8396,139.55,139.47,34.46611134]
[1745055557582,5.07535689,139.54,139.47,34.46611134]
[1745055557783,1.8396,139.55,139.47,34.46611134]
[1745055558082,5.07546295,139.54,139.47,34.46611134]
[1745055558282,1.8396,139.55,139.47,34.46611134]
[1745055558582,5.07488426,139.54,139.47,34.46611134]
[1745055558881,5.07488426,139.53,139.47,34.46611134]
[1745055559083,5.07488426,139.52,139.47,34.46611134]
[1745055559275,1.8396,139.55,139.47,34.46611134]
[1745055559474,5.07473676,139.54,139.47,34.46611134]
[1745055559681,5.07473676,139.53,139.47,34.46611134]
[1745055559878,5.07473676,139.52,139.47,25.56]
[1745055560083,27.3996,139.55,139.47,25.56]
[1745055560284,5.07509624,139.54,139.47,25.56]
[1745055560582,5.07509624,139.53,139.47,25.56]
[1745055560782,5.07509624,139.52,139.45,576.72611134]
[1745055560976,27.3996,139.55,139.46,25.56]
[1745055561181,5.07492018,139.54,139.46,25.56]
[1745055561380,5.07492018,139.53,139.46,25.56]
[1745055561588,5.07492018,139.52,139.46,25.56]
[1745055561784,27.3996,139.55,139.46,25.56]
[1745055562081,5.07470365,139.54,139.46,25.56]
[1745055562279,5.07470365,139.53,139.46,25.56]
[1745055562578,5.07470365,139.52,139.46,25.56]
[1745055562775,36.30571134,139.55,139.47,25.56]
[1745055562982,5.07457558,139.54,139.47,25.56]
[1745055563181,5.07457558,139.53,139.47,25.56]
[1745055563480,5.07457558,139.52,139.47,25.56]
[1745055563682,5.07457558,139.51,139.47,25.56]
[1745055563883,36.30571134,139.55,139.47,25.56]
[1745055564181,5.07493287,139.54,139.47,25.56]
[1745055564383,5.07493287,139.53,139.47,25.56]
[1745055564582,5.07493287,139.52,139.47,25.56]
[1745055564784,7.08913287,139.51,139.47,25.56]
[1745055564986,5.07493287,139.5,139.47,25.56]
[1745055565284,2.0142,139.51,139.44,25.56]
[1745055565483,5.07494142,139.5,139.44,25.56]
[1745055565785,2.0142,139.51,139.44,25.56]
[1745055565985,5.07554798,139.5,139.44,25.56]
[1745055566185,2.0142,139.51,139.44,25.56]
[1745055566484,5.07557161,139.5,139.44,25.56]
[1745055566685,2.0142,139.51,139.44,25.56]
[1745055566886,5.0762227,139.5,139.44,25.56]
[1745055567090,2.0142,139.51,139.44,25.56]
[1745055567289,5.07622269,139.5,139.44,25.56]
[1745055567588,2.0142,139.51,139.44,25.56]
[1745055567789,5.07789779,139.5,139.44,25.56]
[1745055568089,25.56,139.52,139.44,25.56]
[1745055568388,5.07782345,139.51,139.44,25.56]
[1745055568589,5.07782345,139.5,139.44,25.56]
[1745055568791,25.56,139.52,139.44,25.56]
[1745055568991,5.07968121,139.51,139.44,25.56]
[1745055569191,5.07968121,139.5,139.44,25.56]
[1745055569391,25.56,139.52,139.44,25.56]
[1745055569693,5.0812558,139.51,139.44,25.56]
[1745055569892,5.0812558,139.5,139.44,25.56]
[1745055570092,25.56,139.52,139.44,25.56]
[1745055570294,5.0812204,139.51,139.44,25.56]
[1745055570488,5.0812204,139.5,139.44,25.56]
[1745055570690,5.0812204,139.49,139.44,27.5268]
[1745055570992,25.56,139.52,139.44,27.5268]
[1745055571190,5.08295793,139.51,139.44,27.5268]
[1745055571392,5.08295793,139.5,139.44,27.5268]
[1745055571589,5.08295793,139.49,139.44,27.5268]
[1745055571795,25.56,139.52,139.44,27.5268]
[1745055571995,5.0841794,139.51,139.44,27.5268]
[1745055572293,5.0841794,139.5,139.44,27.5268]
[1745055572492,5.0841794,139.49,139.44,27.5268]
[1745055572692,25.56,139.52,139.44,27.5268]
[1745055572994,5.08534956,139.51,139.44,27.5268]
[1745055573195,5.08534956,139.5,139.47,5.70053773]
[1745055573394,5.08534956,139.49,139.47,5.70053773]
[1745055573691,31.26053773,139.52,139.47,5.70053773]
[1745055573892,5.08665287,139.51,139.47,5.70053773]
[1745055574094,5.08665287,139.5,139.47,5.70053773]
[1745055574396,5.08665287,139.49,139.44,27.5268]
[1745055574599,31.26053773,139.52,139.46,5.70053773]
[1745055574894,5.08798642,139.51,139.46,5.70053773]
[1745055575095,5.08798642,139.5,139.46,5.70053773]
[1745055575295,5.08798642,139.49,139.46,5.70053773]
[1745055575497,31.26053773,139.52,139.46,5.70053773]
[1745055575797,5.08942797,139.51,139.46,5.70053773]
[1745055575999,5.08942797,139.5,139.46,5.70053773]
[1745055576296,5.08942797,139.49,139.46,5.70053773]
[1745055576497,31.26053773,139.52,139.46,5.70053773]
[1745055576796,5.09107905,139.51,139.46,5.70053773]
[1745055576996,5.09107905,139.5,139.46,5.70053773]
[1745055577199,5.09107905,139.49,139.46,5.70053773]
[1745055577397,31.26053773,139.52,139.46,5.70053773]
[1745055577598,5.09256754,139.51,139.46,5.70053773]
[1745055577801,5.09256754,139.5,139.46,5.70053773]
[1745055577994,5.09256754,139.49,139.46,5.70053773]
[1745055578192,5.09256754,139.48,139.46,5.70053773]
[1745055578396,31.26053773,139.52,139.46,5.70053773]
[1745055578695,5.70053773,139.5,139.44,31.26053773]
[1745055578891,5.095216,139.49,139.44,31.26053773]
[1745055579099,5.095216,139.48,139.44,31.26053773]
[1745055579396,5.095216,139.47,139.44,31.26053773]
[1745055579599,5.095216,139.46,139.44,31.26053773]
[1745055579800,7.60033773,139.5,139.44,31.26053773]
[1745055579801,5.09897937,139.45,139.44,31.26053773]
[1745055580196,5.09897937,139.45,139.39,1.9498]
[1745055580197,5.09897937,139.45,139.42,5.70053773]
[1745055580494,5.09897937,139.44,139.42,5.70053773]
[1745055580699,5.70053773,139.48,139.42,5.70053773]
[1745055580900,5.10175288,139.47,139.42,5.70053773]
[1745055581100,5.10175288,139.46,139.42,5.70053773]
[1745055581299,5.10175288,139.45,139.42,5.70053773]
[1745055581500,5.10175288,139.44,139.42,5.70053773]
[1745055581799,5.10175288,139.43,139.42,5.70053773]
[1745055582201,27.4489,139.49,139.42,5.70053773]
[1745055582400,27.4489,139.49,139.45,5.70053773]
[1745055582900,27.4489,139.49,139.48,7.17]
[1745055583099,27.4489,139.49,139.45,5.70053773]
[1745055584403,27.4489,139.49,139.47,7.1701]
[1745055584595,27.4489,139.49,139.45,5.70053773]
[1745055586503,27.4489,139.49,139.48,7.17]
[1745055587905,27.4489,139.49,139.47,7.1703]
[1745055588505,27.4489,139.49,139.47,4.1116]
[1745055590107,27.4489,139.49,139.48,7.17]
[1745055590304,2.0089,139.49,139.48,7.17]
[1745055594209,6.98874,139.49,139.48,7.17]
[1745055603410,32.44874,139.49,139.41,31.16053773]
[1745055603615,5.70053773,139.45,139.39,31.16053773]
[1745055603816,4.97984,139.44,139.39,31.16053773]
[1745055604114,10.68037773,139.43,139.39,25.46]
[1745055604415,4.97984,139.42,139.39,25.46]
[1745055604615,4.97984,139.41,139.39,25.46]
[1745055604815,4.97984,139.4,139.39,25.46]
[1745055605220,4.97984,139.4,139.39,38.33513773]
[1745055606220,4.97984,139.4,139.39,32.6346]
[1745055606517,4.97984,139.4,139.39,38.33513773]
[1745055607316,9.56843773,139.45,139.39,31.16053773]
[1745055607514,5.70053773,139.45,139.39,31.16053773]
[1745055608219,5.70053773,139.45,139.44,7.1721]
[1745055609522,25.46,139.46,139.45,7.1716]
[1745055609717,34.41791301,139.49,139.45,5.70053773]
[1745055609924,25.46,139.49,139.47,5.70053773]
[1745055610224,25.46,139.52,139.5,7.169]
[1745055610618,25.46,139.52,139.51,7.1685]
[1745055612321,25.46,139.52,139.49,5.70053773]
[1745055612322,3.8231,139.53,139.52,7.168]
[1745055614527,31.16053773,139.55,139.54,7.1669]
[1745055614732,25.46,139.55,139.54,7.1669]
[1745055614929,7.64023773,139.56,139.51,5.70053773]
[1745055615131,7.64023773,139.56,139.54,7.1665]
[1745055615532,1.9397,139.56,139.51,5.70053773]
[1745055615832,3.8193,139.57,139.51,31.16053773]
[1745055616332,3.8193,139.57,139.56,7.1659]
[1745055617532,31.16053773,139.58,139.57,7.1654]
[1745055618535,31.16053773,139.58,139.56,7.1657]
[1745055618730,31.16053773,139.58,139.56,4.1083]
[1745055619031,31.16053773,139.58,139.55,7.1663]
[1745055619232,31.16053773,139.58,139.52,5.70053773]
[1745055619432,4.71033107,139.57,139.52,5.70053773]
[1745055619728,4.71033107,139.57,139.51,25.46]
[1745055619729,10.4108688,139.56,139.55,7.1664]
[1745055620732,4.71033107,139.56,139.55,7.1664]
[1745055626035,5.70053773,139.58,139.57,7.1654]
[1745055626234,10.39998469,139.58,139.57,7.1654]
[1745055628134,4.69944696,139.58,139.57,7.1654]
[1745055628935,5.70053773,139.6,139.58,7.1647]
[1745055629235,4.69553841,139.59,139.58,7.1647]
[1745055632534,4.69553841,139.59,139.53,31.14053773]
[1745055632734,10.39153584,139.58,139.53,31.14053773]
[1745055633037,5.70053773,139.58,139.57,7.1654]
[1745055638544,5.70053773,139.58,139.56,7.1658]
[1745055638744,4.68740811,139.57,139.52,5.70053773]
[1745055639041,5.70053773,139.58,139.52,5.70053773]
[1745055639242,4.68752242,139.57,139.55,7.1659]
[1745055639438,5.70053773,139.58,139.55,7.1659]
[1745055639635,5.70053773,139.58,139.52,5.70053773]
[1745055639839,5.70053773,139.59,139.54,5.70053773]
[1745055640041,4.68757546,139.58,139.51,25.44]
[1745055640342,5.70053773,139.59,139.56,7.1659]
[1745055640641,4.68758064,139.58,139.56,7.1659]
[1745055640843,12.86493773,139.59,139.55,7.1661]
[1745055641042,4.68754395,139.58,139.55,7.1661]
[1745055641242,12.86493773,139.59,139.55,7.1661]
[1745055641442,5.70053773,139.57,139.54,7.1668]
[1745055642247,5.70053773,139.57,139.53,5.70053773]
[1745055642439,25.44,139.58,139.53,5.70053773]
[1745055642747,5.70053773,139.59,139.51,25.44]
[1745055643048,5.70053773,139.57,139.53,5.70053773]
[1745055644446,5.70053773,139.57,139.56,7.1659]
[1745055644647,5.70053773,139.58,139.56,7.1659]
[1745055646447,5.70053773,139.58,139.53,5.70053773]
[1745055646448,5.70053773,139.58,139.55,7.1663]
[1745055647448,5.70053773,139.58,139.53,5.70053773]
[1745055647449,4.68978562,139.57,139.56,7.1659]
[1745055648150,5.70053773,139.58,139.56,7.1659]
[1745055648347,4.68998271,139.57,139.56,7.1659]
[1745055648849,5.70053773,139.58,139.56,7.1659]
[1745055649450,4.69319133,139.57,139.56,7.1659]
[1745055649750,5.70053773,139.58,139.56,7.1659]
[1745055650250,5.70053773,139.58,139.55,7.1662]
[1745055650452,5.70053773,139.58,139.53,5.70053773]
[1745055651253,4.69624818,139.57,139.56,7.1658]
[1745055653452,4.69624818,139.57,139.55,7.1663]
[1745055653644,4.69624818,139.56,139.55,7.1663]
[1745055656752,5.70053773,139.58,139.55,7.1663]
[1745055657052,5.70053773,139.58,139.56,7.1659]
[1745055658451,5.70053773,139.58,139.55,7.1662]
[1745055660650,5.70053773,139.56,139.53,7.1673]
[1745055660843,4.73039149,139.55,139.53,7.1673]
[1745055661046,4.73039149,139.54,139.51,5.70053773]
[1745055661244,4.73039149,139.53,139.51,5.70053773]
[1745055661546,4.73039149,139.52,139.51,5.70053773]
[1745055662152,4.73039149,139.52,139.51,12.86903773]
[1745055662550,28.65048948,139.61,139.51,5.70053773]
[1745055662853,12.86473773,139.6,139.56,7.1656]
[1745055664753,5.70053773,139.6,139.57,7.1653]
[1745055665856,27.4032,139.61,139.56,5.70053773]
[1745055666056,2.0012,139.62,139.58,5.70053773]
[1745055666257,25.44,139.64,139.6,5.70053773]
[1745055666855,25.44,139.64,139.61,7.1629]
[1745055667353,25.44,139.64,139.6,5.70053773]
[1745055667952,25.44,139.64,139.6,12.86393773]
[1745055669248,25.44,139.64,139.6,5.70053773]
[1745055671159,32.602,139.64,139.6,5.70053773]
[1745055671756,32.602,139.64,139.58,12.86513773]
[1745055673563,7.1623,139.63,139.58,12.86513773]
[1745055675866,7.1623,139.63,139.6,5.70053773]
[1745055676766,32.6021,139.64,139.6,5.70053773]
[1745055677262,7.1621,139.64,139.6,5.70053773]
[1745055677567,7.1621,139.64,139.6,12.86433773]
[1745055681874,3.14762995,139.7,139.6,5.70053773]
[1745055682071,5.70053773,139.67,139.62,5.70053773]
[1745055682772,5.70053773,139.67,139.62,12.86313773]
[1745055683273,5.70053773,139.65,139.6,5.70053773]
[1745055683467,5.70053773,139.63,139.59,32.5842]
[1745055683673,5.70053773,139.63,139.59,25.42]
[1745055683872,7.1639,139.6,139.56,38.28613773]
[1745055684071,5.70053773,139.61,139.56,38.28613773]
[1745055684475,12.86433773,139.61,139.56,31.12053773]
[1745055685175,7.1639,139.6,139.56,31.12053773]
[1745055686777,7.1639,139.6,139.56,38.28633773]
[1745055688975,12.86413773,139.61,139.56,31.12053773]
[1745055689178,12.86413773,139.61,139.57,7.1653]
[1745055690184,7.1633,139.62,139.58,12.86513773]
[1745055691488,25.42,139.63,139.58,5.70053773]
[1745055691688,25.42,139.63,139.6,5.70053773]
[1745055691889,7.60263773,139.65,139.6,5.70053773]
[1745055692586,7.162,139.64,139.6,12.86413773]
[1745055692786,7.60263773,139.65,139.6,12.86413773]
[1745055693488,14.76413773,139.65,139.6,12.86413773]
[1745055693681,14.76413773,139.65,139.61,7.1633]
[1745055693879,5.70053773,139.65,139.61,7.1633]
[1745055694278,5.70053773,139.65,139.62,7.1627]
[1745055695987,5.70053773,139.65,139.61,7.1632]
[1745055696584,34.5776,139.66,139.61,7.1632]
[1745055697082,34.5776,139.66,139.62,5.70053773]
[1745055698486,7.1613,139.65,139.62,5.70053773]
[1745055701690,7.1613,139.65,139.61,7.1632]
[1745055701887,7.1613,139.65,139.61,12.86373773]
[1745055702088,5.70053773,139.65,139.59,31.12053773]
[1745055702692,33.11733773,139.66,139.61,5.70053773]
[1745055703783,40.27833773,139.66,139.61,12.86383773]
[1745055705791,40.27833773,139.66,139.62,7.1625]
[1745055708296,33.11733773,139.66,139.62,7.1625]
[1745055708893,33.11733773,139.66,139.63,7.1623]
[1745055709097,33.11733773,139.66,139.61,5.70053773]
[1745055709495,33.11733773,139.66,139.62,7.1623]
[1745055709696,25.42,139.66,139.63,5.70053773]
[1745055709896,27.3483,139.69,139.65,5.70053773]
[1745055711700,25.42,139.69,139.67,12.86033773]
[1745055711899,38.27843773,139.72,139.67,12.86033773]
[1745055712099,31.12053773,139.72,139.67,5.70053773]
[1745055712497,38.27853773,139.72,139.67,5.70053773]
[1745055712699,25.42,139.72,139.69,5.70053773]
[1745055712898,25.42,139.72,139.69,12.85953773]
[1745055713500,605.41703773,139.75,139.7,7.1587]